[Event "Early-Titled-Tuesday-Blitz-March-12-2024"]
[Site "Chess.com"]
[Date "2024.03.12"]
[Round "9"]
[White "PetrolulSah"]
[Black "margarita_2703"]
[Result "1-0"]
[WhiteElo "2237"]
[BlackElo "2365"]
[TimeControl "180+1"]
[EndTime "9:41:02 PDT"]
[Termination "PetrolulSah won by resignation"]

1. d4 {[%clk 0:02:54.8]} 1... d5 {[%clk 0:02:55.2]} 2. c4 {[%clk 0:02:54.1]}
2... e6 {[%clk 0:02:48]} 3. Nf3 {[%clk 0:02:52.9]} 3... c6 {[%clk 0:02:42.7]} 4.
g3 {[%clk 0:02:51.8]} 4... Nf6 {[%clk 0:02:36.4]} 5. Bg2 {[%clk 0:02:51.7]} 5...
Nbd7 {[%clk 0:02:21.8]} 6. O-O {[%clk 0:02:51.1]} 6... dxc4 {[%clk 0:02:21.9]}
7. Qc2 {[%clk 0:02:47.2]} 7... b5 {[%clk 0:02:20.3]} 8. Rd1 {[%clk 0:02:43.7]}
8... Bb7 {[%clk 0:02:11.8]} 9. Ne5 {[%clk 0:02:43]} 9... Rc8 {[%clk 0:02:05.6]}
10. a4 {[%clk 0:02:41.6]} 10... Qb6 {[%clk 0:01:58.9]} 11. a5 {[%clk 0:02:34.5]}
11... Qd8 {[%clk 0:01:52.7]} 12. b3 {[%clk 0:02:29.5]} 12... cxb3 {[%clk
0:01:50.3]} 13. Qxb3 {[%clk 0:02:29.3]} 13... a6 {[%clk 0:01:47.9]} 14. Nc3
{[%clk 0:02:25.8]} 14... Bd6 {[%clk 0:01:47]} 15. Bg5 {[%clk 0:02:23.1]} 15...
h6 {[%clk 0:01:43.8]} 16. Nxd7 {[%clk 0:02:18.5]} 16... hxg5 {[%clk 0:01:38.9]}
17. Nc5 {[%clk 0:02:18.4]} 17... Qe7 {[%clk 0:01:35.1]} 18. N5e4 {[%clk
0:01:57.7]} 18... Nxe4 {[%clk 0:01:25.7]} 19. Nxe4 {[%clk 0:01:56.4]} 19... f5
{[%clk 0:01:25.2]} 20. Nc5 {[%clk 0:01:45.7]} 20... Bxc5 {[%clk 0:01:17.2]} 21.
dxc5 {[%clk 0:01:45]} 21... Kf7 {[%clk 0:01:17.8]} 22. Rd6 {[%clk 0:01:40.6]}
22... Rhd8 {[%clk 0:01:18.7]} 23. Rad1 {[%clk 0:01:37.1]} 23... Rxd6 {[%clk
0:01:16.2]} 24. Rxd6 {[%clk 0:01:30.2]} 24... Rd8 {[%clk 0:01:15.8]} 25. Bxc6
{[%clk 0:01:26.5]} 25... Bxc6 {[%clk 0:01:04.7]} 26. Rxc6 {[%clk 0:01:25.2]}
26... Rd5 {[%clk 0:01:04.5]} 27. Qe3 {[%clk 0:01:08]} 27... Qd7 {[%clk
0:00:59.5]} 28. Rb6 {[%clk 0:01:00.1]} 28... Rd1+ {[%clk 0:00:47.4]} 29. Kg2
{[%clk 0:00:59.6]} 29... Qd5+ {[%clk 0:00:48.2]} 30. f3 {[%clk 0:00:58.1]} 30...
Rc1 {[%clk 0:00:48]} 31. Qxc1 {[%clk 0:00:56.1]} 1-0

[Event "Early-Titled-Tuesday-Blitz-March-12-2024"]
[Site "Chess.com"]
[Date "2024.03.12"]
[Round "9"]
[White "PLAYER_2006_M"]
[Black "DonkyDonkyDonkey"]
[Result "1-0"]
[WhiteElo "2995"]
[BlackElo "2892"]
[TimeControl "180+1"]
[EndTime "9:41:04 PDT"]
[Termination "PLAYER_2006_M won by resignation"]

1. e4 {[%clk 0:03:00.9]} 1... c5 {[%clk 0:02:59.5]} 2. Nf3 {[%clk 0:02:59.7]}
2... d6 {[%clk 0:02:59.4]} 3. d4 {[%clk 0:03:00]} 3... cxd4 {[%clk 0:03:00.3]}
4. Nxd4 {[%clk 0:03:00.8]} 4... Nf6 {[%clk 0:03:01]} 5. Nc3 {[%clk 0:03:01.5]}
5... a6 {[%clk 0:03:01.6]} 6. a3 {[%clk 0:03:01.9]} 6... e5 {[%clk 0:02:58.8]}
7. Nf5 {[%clk 0:03:01.9]} 7... d5 {[%clk 0:02:57]} 8. Bg5 {[%clk 0:03:01.5]}
8... d4 {[%clk 0:02:57.5]} 9. Bxf6 {[%clk 0:03:01.1]} 9... Qxf6 {[%clk
0:02:58.4]} 10. Nd5 {[%clk 0:03:01.3]} 10... Qc6 {[%clk 0:02:59]} 11. c4 {[%clk
0:02:58.3]} 11... g6 {[%clk 0:02:57]} 12. Nxd4 {[%clk 0:02:47.9]} 12... exd4
{[%clk 0:02:57.9]} 13. Qxd4 {[%clk 0:02:48.6]} 13... f6 {[%clk 0:02:58.4]} 14.
b4 {[%clk 0:02:46.1]} 14... Nd7 {[%clk 0:02:52.7]} 15. f4 {[%clk 0:02:43.4]}
15... Bd6 {[%clk 0:02:29.4]} 16. c5 {[%clk 0:02:40.4]} 16... Bb8 {[%clk
0:01:44.8]} 17. Bc4 {[%clk 0:02:34.9]} 17... g5 {[%clk 0:01:42.5]} 18. g3 {[%clk
0:02:16.6]} 18... gxf4 {[%clk 0:01:33.1]} 19. gxf4 {[%clk 0:02:17.5]} 19... b6
{[%clk 0:01:16.5]} 20. cxb6 {[%clk 0:02:12]} 20... Ne5 {[%clk 0:01:16.7]} 21.
Be2 {[%clk 0:01:58]} 21... Bb7 {[%clk 0:00:45.1]} 22. Bh5+ {[%clk 0:01:47.7]}
22... Kf8 {[%clk 0:00:40.4]} 23. fxe5 {[%clk 0:01:42]} 23... Bxe5 {[%clk
0:00:41.3]} 24. Qe3 {[%clk 0:01:41.4]} 24... Rg8 {[%clk 0:00:35.6]} 25. Rc1
{[%clk 0:01:38]} 25... Qd6 {[%clk 0:00:28.5]} 26. Rc7 {[%clk 0:01:35.7]} 26...
Rg5 {[%clk 0:00:25.2]} 27. Rxb7 {[%clk 0:01:28.4]} 27... Rxh5 {[%clk 0:00:25.5]}
28. Qc5 {[%clk 0:01:27.4]} 28... Re8 {[%clk 0:00:20]} 29. Qxd6+ {[%clk
0:01:23.4]} 29... Bxd6 {[%clk 0:00:20.9]} 30. Nxf6 {[%clk 0:01:24.3]} 1-0

[Event "Early-Titled-Tuesday-Blitz-March-12-2024"]
[Site "Chess.com"]
[Date "2024.03.12"]
[Round "9"]
[White "snowlord"]
[Black "Msb2"]
[Result "0-1"]
[WhiteElo "2909"]
[BlackElo "3010"]
[TimeControl "180+1"]
[EndTime "9:41:12 PDT"]
[Termination "Msb2 won by resignation"]

1. d4 {[%clk 0:02:59.7]} 1... d5 {[%clk 0:03:00.3]} 2. Bf4 {[%clk 0:02:58.1]}
2... c5 {[%clk 0:03:00.4]} 3. e4 {[%clk 0:02:56.9]} 3... e6 {[%clk 0:02:58]} 4.
Nc3 {[%clk 0:02:55.4]} 4... cxd4 {[%clk 0:02:57.6]} 5. Qxd4 {[%clk 0:02:43]}
5... Nc6 {[%clk 0:02:57.3]} 6. Qa4 {[%clk 0:02:41.8]} 6... Bb4 {[%clk
0:02:56.9]} 7. O-O-O {[%clk 0:02:36.5]} 7... Bxc3 {[%clk 0:02:54.4]} 8. bxc3
{[%clk 0:02:37.4]} 8... Ne7 {[%clk 0:02:54.7]} 9. exd5 {[%clk 0:02:30.3]} 9...
exd5 {[%clk 0:02:55.6]} 10. Bd3 {[%clk 0:02:30.1]} 10... O-O {[%clk 0:02:54.4]}
11. Nf3 {[%clk 0:02:23.9]} 11... Bf5 {[%clk 0:02:48.2]} 12. Rhe1 {[%clk
0:02:18.8]} 12... Bxd3 {[%clk 0:02:46.6]} 13. Rxd3 {[%clk 0:02:19.6]} 13... Ng6
{[%clk 0:02:41.1]} 14. Bg3 {[%clk 0:02:19.5]} 14... Qf6 {[%clk 0:02:38.7]} 15.
h4 {[%clk 0:02:07.4]} 15... h5 {[%clk 0:02:11.9]} 16. Rxd5 {[%clk 0:01:57.8]}
16... Qxc3 {[%clk 0:02:11.9]} 17. Qb3 {[%clk 0:01:58.2]} 17... Qa1+ {[%clk
0:02:06.4]} 18. Qb1 {[%clk 0:01:39.2]} 18... Qf6 {[%clk 0:02:05.8]} 19. Qb2
{[%clk 0:01:34.3]} 19... Qxb2+ {[%clk 0:01:46.6]} 20. Kxb2 {[%clk 0:01:34.5]}
20... b6 {[%clk 0:01:47.5]} 21. Rxh5 {[%clk 0:01:34.1]} 21... Na5 {[%clk
0:01:48.1]} 22. Re4 {[%clk 0:01:27.1]} 22... Rac8 {[%clk 0:01:47.4]} 23. Rg5
{[%clk 0:01:25.5]} 23... Rfd8 {[%clk 0:01:18.8]} 24. h5 {[%clk 0:01:22.2]} 24...
Nf8 {[%clk 0:01:19.4]} 25. Rgg4 {[%clk 0:01:03]} 25... f5 {[%clk 0:01:16.3]} 26.
Rxg7+ {[%clk 0:01:03.2]} 26... Kxg7 {[%clk 0:01:16.5]} 27. Re7+ {[%clk 0:01:04]}
27... Kg8 {[%clk 0:01:07.2]} 28. h6 {[%clk 0:00:58.9]} 28... Nc4+ {[%clk
0:00:59.4]} 29. Kc1 {[%clk 0:00:58.9]} 29... Rd7 {[%clk 0:00:58.7]} 30. h7+
{[%clk 0:00:58.5]} 30... Kh8 {[%clk 0:00:59.1]} 0-1

[Event "Early-Titled-Tuesday-Blitz-March-12-2024"]
[Site "Chess.com"]
[Date "2024.03.12"]
[Round "9"]
[White "SuperPower2011"]
[Black "GeorgiosSouleidis"]
[Result "0-1"]
[WhiteElo "2796"]
[BlackElo "2690"]
[TimeControl "180+1"]
[EndTime "9:41:20 PDT"]
[Termination "GeorgiosSouleidis won by resignation"]

1. e4 {[%clk 0:03:00.9]} 1... c5 {[%clk 0:02:59.5]} 2. Nf3 {[%clk 0:03:00.8]}
2... e6 {[%clk 0:03:00]} 3. d4 {[%clk 0:03:00.7]} 3... cxd4 {[%clk 0:03:00.9]}
4. Nxd4 {[%clk 0:03:01.6]} 4... Nf6 {[%clk 0:03:01.5]} 5. Nc3 {[%clk 0:03:02.1]}
5... Nc6 {[%clk 0:03:01.7]} 6. Ndb5 {[%clk 0:02:59.9]} 6... Bc5 {[%clk
0:03:00.8]} 7. Nd6+ {[%clk 0:02:58.3]} 7... Ke7 {[%clk 0:03:00.8]} 8. Bf4 {[%clk
0:02:58.9]} 8... e5 {[%clk 0:03:00.9]} 9. Nf5+ {[%clk 0:02:59.2]} 9... Kf8
{[%clk 0:03:01.6]} 10. Bg5 {[%clk 0:02:58.4]} 10... d6 {[%clk 0:03:02]} 11. Bc4
{[%clk 0:02:39.2]} 11... Be6 {[%clk 0:03:01.5]} 12. Bd5 {[%clk 0:02:29.7]} 12...
h6 {[%clk 0:02:55.7]} 13. Bh4 {[%clk 0:02:29.2]} 13... g6 {[%clk 0:02:05.3]} 14.
Nxd6 {[%clk 0:01:53.9]} 14... Bxd6 {[%clk 0:01:56.2]} 15. Bxf6 {[%clk
0:01:50.7]} 15... Qxf6 {[%clk 0:01:54.2]} 16. Bxc6 {[%clk 0:01:38]} 16... Bc5
{[%clk 0:01:54.4]} 17. O-O {[%clk 0:01:34.3]} 17... bxc6 {[%clk 0:01:54.6]} 18.
Na4 {[%clk 0:01:34.3]} 18... Be7 {[%clk 0:01:51.8]} 19. Qd2 {[%clk 0:01:30.6]}
19... Kg7 {[%clk 0:01:46.8]} 20. Qc3 {[%clk 0:01:30.4]} 20... c5 {[%clk
0:01:41.2]} 21. Nxc5 {[%clk 0:01:03.9]} 21... Bxc5 {[%clk 0:01:41.3]} 22. Qxc5
{[%clk 0:01:04.8]} 22... Rhc8 {[%clk 0:01:41.5]} 23. Qe3 {[%clk 0:00:36.1]}
23... Rxc2 {[%clk 0:01:40.7]} 24. b3 {[%clk 0:00:36.7]} 24... a5 {[%clk
0:01:32.9]} 25. Kh1 {[%clk 0:00:33.2]} 25... a4 {[%clk 0:01:29.5]} 26. b4 {[%clk
0:00:33.2]} 26... Rxa2 {[%clk 0:01:25.3]} 27. Rxa2 {[%clk 0:00:30.6]} 27... Bxa2
{[%clk 0:01:26.2]} 28. f4 {[%clk 0:00:31.2]} 28... exf4 {[%clk 0:01:24.2]} 29.
Qc1 {[%clk 0:00:26.7]} 29... Be6 {[%clk 0:01:08]} 30. Rxf4 {[%clk 0:00:26.3]}
30... Qe5 {[%clk 0:01:03.7]} 31. Rf1 {[%clk 0:00:25.5]} 31... a3 {[%clk
0:01:03.6]} 32. Qe3 {[%clk 0:00:25.2]} 32... a2 {[%clk 0:01:03.1]} 0-1

[Event "Early-Titled-Tuesday-Blitz-March-12-2024"]
[Site "Chess.com"]
[Date "2024.03.12"]
[Round "9"]
[White "manitodeplomo"]
[Black "Barmen_EV"]
[Result "0-1"]
[WhiteElo "2713"]
[BlackElo "2534"]
[TimeControl "180+1"]
[EndTime "9:41:27 PDT"]
[Termination "Barmen_EV won by checkmate"]

1. d4 {[%clk 0:03:00.9]} 1... Nf6 {[%clk 0:03:00]} 2. c4 {[%clk 0:02:59.4]} 2...
g6 {[%clk 0:03:00.7]} 3. Nc3 {[%clk 0:02:58.1]} 3... Bg7 {[%clk 0:03:01.2]} 4.
e4 {[%clk 0:02:58.1]} 4... O-O {[%clk 0:03:01.7]} 5. Be2 {[%clk 0:02:58.3]} 5...
d6 {[%clk 0:03:02]} 6. Nf3 {[%clk 0:02:56.2]} 6... e5 {[%clk 0:03:02.6]} 7. d5
{[%clk 0:02:54.1]} 7... a5 {[%clk 0:03:01.5]} 8. Bg5 {[%clk 0:02:53.7]} 8...
Nbd7 {[%clk 0:02:59.2]} 9. Nd2 {[%clk 0:02:52]} 9... h6 {[%clk 0:02:57]} 10. Bh4
{[%clk 0:02:51.2]} 10... c6 {[%clk 0:02:56.2]} 11. O-O {[%clk 0:02:50.3]} 11...
Nc5 {[%clk 0:02:51.7]} 12. Qc2 {[%clk 0:02:44.2]} 12... g5 {[%clk 0:02:50.3]}
13. Bg3 {[%clk 0:02:42.9]} 13... cxd5 {[%clk 0:02:49.8]} 14. cxd5 {[%clk
0:02:42.5]} 14... Bd7 {[%clk 0:02:50.1]} 15. a4 {[%clk 0:02:39.7]} 15... Rc8
{[%clk 0:02:48.7]} 16. Nc4 {[%clk 0:02:29.4]} 16... Qe7 {[%clk 0:02:37.5]} 17.
f3 {[%clk 0:02:18.6]} 17... Nh5 {[%clk 0:02:32.4]} 18. Nxa5 {[%clk 0:02:12.7]}
18... Nxg3 {[%clk 0:02:21.7]} 19. hxg3 {[%clk 0:02:11.6]} 19... g4 {[%clk
0:02:22.3]} 20. Bb5 {[%clk 0:01:36.1]} 20... gxf3 {[%clk 0:02:14.9]} 21. Rxf3
{[%clk 0:01:34.9]} 21... Bg4 {[%clk 0:02:07.4]} 22. Rf2 {[%clk 0:01:34.4]} 22...
f5 {[%clk 0:01:51.2]} 23. exf5 {[%clk 0:01:21.9]} 23... e4 {[%clk 0:01:52.1]}
24. Rf4 {[%clk 0:00:35.5]} 24... Bd4+ {[%clk 0:01:48.6]} 25. Kf1 {[%clk
0:00:33]} 25... Rxf5 {[%clk 0:01:48.8]} 26. Re1 {[%clk 0:00:30.9]} 26... Qh4
{[%clk 0:01:16.5]} 27. gxh4 {[%clk 0:00:06.9]} 27... Rxf4+ {[%clk 0:01:16.4]}
28. Qf2 {[%clk 0:00:06.1]} 28... Rxf2+ {[%clk 0:01:16.6]} 29. Kg1 {[%clk
0:00:06.1]} 29... Rf1+ {[%clk 0:01:11.3]} 30. Kxf1 {[%clk 0:00:05.6]} 30... Rf8#
{[%clk 0:01:11.6]} 0-1

[Event "Early-Titled-Tuesday-Blitz-March-12-2024"]
[Site "Chess.com"]
[Date "2024.03.12"]
[Round "9"]
[White "ChelsieMonica"]
[Black "Veleamater"]
[Result "1-0"]
[WhiteElo "2532"]
[BlackElo "2318"]
[TimeControl "180+1"]
[EndTime "9:41:34 PDT"]
[Termination "ChelsieMonica won by resignation"]

1. e4 {[%clk 0:03:00.9]} 1... d6 {[%clk 0:03:00.9]} 2. d4 {[%clk 0:03:00.9]}
2... g6 {[%clk 0:03:00.8]} 3. Nc3 {[%clk 0:03:01.5]} 3... Bg7 {[%clk 0:02:59.8]}
4. Nf3 {[%clk 0:03:02.4]} 4... Nf6 {[%clk 0:02:59.4]} 5. h3 {[%clk 0:03:02.5]}
5... O-O {[%clk 0:02:59.4]} 6. Be2 {[%clk 0:03:02.4]} 6... Nc6 {[%clk 0:03:00]}
7. d5 {[%clk 0:03:02.4]} 7... Ne5 {[%clk 0:02:59.4]} 8. Nxe5 {[%clk 0:03:02.7]}
8... dxe5 {[%clk 0:03:00.3]} 9. Be3 {[%clk 0:03:03]} 9... h6 {[%clk 0:03:00.9]}
10. Qd2 {[%clk 0:03:03.1]} 10... Kh7 {[%clk 0:03:00.8]} 11. O-O-O {[%clk
0:03:03.3]} 11... Ne8 {[%clk 0:03:01]} 12. g4 {[%clk 0:03:02.6]} 12... Nd6
{[%clk 0:03:00.8]} 13. f4 {[%clk 0:03:00.5]} 13... exf4 {[%clk 0:02:57.6]} 14.
Bxf4 {[%clk 0:03:01]} 14... e5 {[%clk 0:02:56.1]} 15. dxe6 {[%clk 0:03:00.2]}
15... Bxe6 {[%clk 0:02:55.5]} 16. e5 {[%clk 0:02:56.5]} 16... Nc4 {[%clk
0:02:47.8]} 17. Qe1 {[%clk 0:02:53.6]} 17... Qe7 {[%clk 0:02:42.8]} 18. Bxc4
{[%clk 0:02:49.1]} 18... Bxc4 {[%clk 0:02:41.5]} 19. Qe4 {[%clk 0:02:49.2]}
19... b5 {[%clk 0:02:21.4]} 20. h4 {[%clk 0:02:46.1]} 20... f5 {[%clk
0:02:03.9]} 21. gxf5 {[%clk 0:02:29.9]} 21... gxf5 {[%clk 0:01:41.7]} 22. Qc6
{[%clk 0:02:27.4]} 22... Rfd8 {[%clk 0:01:16.3]} 23. h5 {[%clk 0:02:16.9]} 23...
Rxd1+ {[%clk 0:01:05.9]} 24. Rxd1 {[%clk 0:02:15.6]} 24... Rd8 {[%clk
0:01:00.7]} 25. Qg6+ {[%clk 0:02:13.4]} 25... Kh8 {[%clk 0:00:58.7]} 26. Rxd8+
{[%clk 0:02:09]} 26... Qxd8 {[%clk 0:00:58]} 27. Bxh6 {[%clk 0:02:04.7]} 27...
Qf8 {[%clk 0:00:57.4]} 28. Bxg7+ {[%clk 0:01:59.5]} 28... Qxg7 {[%clk
0:00:57.6]} 29. Qxg7+ {[%clk 0:01:54.3]} 29... Kxg7 {[%clk 0:00:57.3]} 30. b3
{[%clk 0:01:51.8]} 30... Bf1 {[%clk 0:00:40.8]} 31. Kd2 {[%clk 0:01:50.7]} 31...
c6 {[%clk 0:00:30.5]} 32. Ke3 {[%clk 0:01:49.9]} 32... Bh3 {[%clk 0:00:25.4]}
33. Ne2 {[%clk 0:01:48.4]} 33... Bg4 {[%clk 0:00:17.8]} 34. Nd4 {[%clk
0:01:47.9]} 34... c5 {[%clk 0:00:12.7]} 35. Ne6+ {[%clk 0:01:46.5]} 35... Kh6
{[%clk 0:00:12.4]} 36. Nxc5 {[%clk 0:01:47.4]} 36... Kxh5 {[%clk 0:00:10.2]} 37.
Kf4 {[%clk 0:01:46.8]} 37... Kg6 {[%clk 0:00:08]} 38. Nb7 {[%clk 0:01:42.3]}
38... Kf7 {[%clk 0:00:07.4]} 39. Nd6+ {[%clk 0:01:42.8]} 39... Ke6 {[%clk
0:00:07.3]} 40. Nxb5 {[%clk 0:01:43.7]} 40... a5 {[%clk 0:00:07.8]} 41. c4
{[%clk 0:01:43.5]} 41... Kd7 {[%clk 0:00:05.1]} 42. Nd4 {[%clk 0:01:44.4]} 42...
Bd1 {[%clk 0:00:04.5]} 43. Kxf5 {[%clk 0:01:43.7]} 43... Bc2+ {[%clk 0:00:04.3]}
44. Nxc2 {[%clk 0:01:43.5]} 1-0

[Event "Early-Titled-Tuesday-Blitz-March-12-2024"]
[Site "Chess.com"]
[Date "2024.03.12"]
[Round "9"]
[White "Flawless_Fighter"]
[Black "AnishOnYoutube"]
[Result "0-1"]
[WhiteElo "2845"]
[BlackElo "3042"]
[TimeControl "180+1"]
[EndTime "9:41:38 PDT"]
[Termination "AnishOnYoutube won by resignation"]

1. e4 {[%clk 0:02:55.3]} 1... c5 {[%clk 0:02:59.9]} 2. Nf3 {[%clk 0:02:54.1]}
2... e6 {[%clk 0:03:00.2]} 3. c3 {[%clk 0:02:53.2]} 3... Nf6 {[%clk 0:02:59.8]}
4. e5 {[%clk 0:02:51.6]} 4... Nd5 {[%clk 0:03:00.3]} 5. d4 {[%clk 0:02:52.5]}
5... cxd4 {[%clk 0:03:00.5]} 6. cxd4 {[%clk 0:02:53.4]} 6... b6 {[%clk
0:03:01.2]} 7. a3 {[%clk 0:02:37.4]} 7... Bb7 {[%clk 0:03:01.2]} 8. Bd3 {[%clk
0:02:35.8]} 8... Be7 {[%clk 0:02:58.3]} 9. O-O {[%clk 0:02:35.9]} 9... O-O
{[%clk 0:02:57.5]} 10. Qe2 {[%clk 0:02:35.8]} 10... Nc6 {[%clk 0:02:39.2]} 11.
Nc3 {[%clk 0:02:24.1]} 11... Nxc3 {[%clk 0:02:33.2]} 12. bxc3 {[%clk 0:02:24.6]}
12... Na5 {[%clk 0:02:34]} 13. Bf4 {[%clk 0:02:20.2]} 13... Rc8 {[%clk
0:02:34.1]} 14. c4 {[%clk 0:02:09.7]} 14... Bxf3 {[%clk 0:02:29.8]} 15. Qxf3
{[%clk 0:02:09.3]} 15... Nxc4 {[%clk 0:02:27.8]} 16. a4 {[%clk 0:01:59.9]} 16...
d5 {[%clk 0:02:22.6]} 17. Rfc1 {[%clk 0:01:38]} 17... Bg5 {[%clk 0:01:51.4]} 18.
Rc2 {[%clk 0:00:51.2]} 18... Bxf4 {[%clk 0:01:42.3]} 19. Qxf4 {[%clk 0:00:52.1]}
19... Qd7 {[%clk 0:01:33.6]} 20. Qh4 {[%clk 0:00:47.8]} 20... h6 {[%clk
0:01:32.8]} 21. g4 {[%clk 0:00:41.3]} 21... Na5 {[%clk 0:01:25]} 22. Bb5 {[%clk
0:00:39]} 22... Qb7 {[%clk 0:01:24.5]} 23. Rxc8 {[%clk 0:00:35.1]} 23... Rxc8
{[%clk 0:01:24.6]} 24. Ra3 {[%clk 0:00:33.8]} 24... a6 {[%clk 0:01:12.8]} 25. g5
{[%clk 0:00:33.7]} 25... Qe7 {[%clk 0:01:05.8]} 26. Bxa6 {[%clk 0:00:23]} 26...
Qxa3 {[%clk 0:00:48.5]} 27. Bxc8 {[%clk 0:00:20.6]} 27... Qc1+ {[%clk
0:00:48.2]} 28. Kg2 {[%clk 0:00:21.1]} 28... hxg5 {[%clk 0:00:44.6]} 0-1

[Event "Early-Titled-Tuesday-Blitz-March-12-2024"]
[Site "Chess.com"]
[Date "2024.03.12"]
[Round "9"]
[White "StankovicIvan"]
[Black "Witik"]
[Result "1-0"]
[WhiteElo "2561"]
[BlackElo "2731"]
[TimeControl "180+1"]
[EndTime "9:41:45 PDT"]
[Termination "StankovicIvan won by resignation"]

1. e4 {[%clk 0:03:00.9]} 1... c6 {[%clk 0:03:00.2]} 2. d4 {[%clk 0:03:00.2]}
2... d5 {[%clk 0:03:00.3]} 3. e5 {[%clk 0:03:00.6]} 3... Bf5 {[%clk 0:03:00.4]}
4. h4 {[%clk 0:03:00.2]} 4... Qb6 {[%clk 0:02:58.9]} 5. g4 {[%clk 0:02:51]} 5...
Bd7 {[%clk 0:02:58.8]} 6. c3 {[%clk 0:02:42.9]} 6... h5 {[%clk 0:02:56.1]} 7.
gxh5 {[%clk 0:02:40.7]} 7... Nh6 {[%clk 0:02:56.3]} 8. Bh3 {[%clk 0:02:33.8]}
8... e6 {[%clk 0:02:52.1]} 9. Nf3 {[%clk 0:02:30]} 9... c5 {[%clk 0:02:52.5]}
10. O-O {[%clk 0:02:25.4]} 10... Nc6 {[%clk 0:02:45.8]} 11. a3 {[%clk
0:02:24.3]} 11... a5 {[%clk 0:02:37.8]} 12. c4 {[%clk 0:01:59.9]} 12... cxd4
{[%clk 0:01:42.6]} 13. cxd5 {[%clk 0:01:57]} 13... exd5 {[%clk 0:01:43.1]} 14.
Bxd7+ {[%clk 0:01:48.5]} 14... Kxd7 {[%clk 0:01:44]} 15. Bf4 {[%clk 0:01:20.5]}
15... Bc5 {[%clk 0:01:12.5]} 16. Nbd2 {[%clk 0:01:04.3]} 16... Nd8 {[%clk
0:01:08.4]} 17. e6+ {[%clk 0:00:39.9]} 17... Nxe6 {[%clk 0:01:07.5]} 18. Ne5+
{[%clk 0:00:40.3]} 18... Ke8 {[%clk 0:01:06]} 19. Re1 {[%clk 0:00:29.6]} 19...
Be7 {[%clk 0:00:57.7]} 20. Qa4+ {[%clk 0:00:19.2]} 20... Kf8 {[%clk 0:00:26]}
21. Nd7+ {[%clk 0:00:19.2]} 21... Kg8 {[%clk 0:00:26.4]} 22. Nxb6 {[%clk
0:00:20.1]} 22... Nf5 {[%clk 0:00:26.7]} 23. Nxa8 {[%clk 0:00:19.8]} 23... Rxh5
{[%clk 0:00:26.7]} 24. Rxe6 {[%clk 0:00:19.5]} 24... fxe6 {[%clk 0:00:27.1]} 25.
Qe8+ {[%clk 0:00:19.7]} 25... Bf8 {[%clk 0:00:26.5]} 26. Qxh5 {[%clk 0:00:20.2]}
1-0

[Event "Early-Titled-Tuesday-Blitz-March-12-2024"]
[Site "Chess.com"]
[Date "2024.03.12"]
[Round "9"]
[White "IndianSchoolOfSuffering"]
[Black "tarno17"]
[Result "1-0"]
[WhiteElo "2397"]
[BlackElo "2209"]
[TimeControl "180+1"]
[EndTime "9:41:45 PDT"]
[Termination "IndianSchoolOfSuffering won on time"]

1. c4 {[%clk 0:02:57.3]} 1... e5 {[%clk 0:02:58.9]} 2. Nc3 {[%clk 0:02:54.8]}
2... Nf6 {[%clk 0:02:55]} 3. g3 {[%clk 0:02:55.2]} 3... Bb4 {[%clk 0:02:52.7]}
4. Bg2 {[%clk 0:02:48.4]} 4... O-O {[%clk 0:02:50.5]} 5. e3 {[%clk 0:02:46.3]}
5... c6 {[%clk 0:02:42.3]} 6. Nge2 {[%clk 0:02:43.9]} 6... d5 {[%clk 0:02:29.1]}
7. cxd5 {[%clk 0:02:41.6]} 7... cxd5 {[%clk 0:02:22.7]} 8. d4 {[%clk 0:02:39.9]}
8... e4 {[%clk 0:02:14.5]} 9. h3 {[%clk 0:02:38.6]} 9... Nc6 {[%clk 0:02:10.8]}
10. Bd2 {[%clk 0:02:38.3]} 10... Be6 {[%clk 0:01:56.6]} 11. Rc1 {[%clk
0:02:31.9]} 11... Qd7 {[%clk 0:01:44.4]} 12. Na4 {[%clk 0:02:26.8]} 12... Bxd2+
{[%clk 0:01:37.7]} 13. Qxd2 {[%clk 0:02:27.7]} 13... b6 {[%clk 0:01:22.2]} 14.
Nf4 {[%clk 0:02:21.2]} 14... Rac8 {[%clk 0:01:09.9]} 15. O-O {[%clk 0:02:18.1]}
15... Na5 {[%clk 0:00:37.9]} 16. b3 {[%clk 0:02:12.9]} 16... Bf5 {[%clk
0:00:28.2]} 17. Rxc8 {[%clk 0:02:07.2]} 17... Rxc8 {[%clk 0:00:28]} 18. Kh2
{[%clk 0:01:55.8]} 18... h6 {[%clk 0:00:26.5]} 19. Rc1 {[%clk 0:01:54.6]} 19...
Rxc1 {[%clk 0:00:16.3]} 20. Qxc1 {[%clk 0:01:53.8]} 20... Nh7 {[%clk 0:00:16.1]}
21. Nc3 {[%clk 0:01:46.1]} 21... Be6 {[%clk 0:00:13.6]} 22. Nxe6 {[%clk
0:01:34.5]} 22... Qxe6 {[%clk 0:00:14.5]} 23. h4 {[%clk 0:01:30.4]} 23... Nf6
{[%clk 0:00:12.5]} 24. Bh3 {[%clk 0:01:28.7]} 24... Qc6 {[%clk 0:00:08]} 25. Qd2
{[%clk 0:01:12]} 25... g6 {[%clk 0:00:06.3]} 26. Kg2 {[%clk 0:01:11.8]} 26...
Kg7 {[%clk 0:00:06.7]} 27. Ne2 {[%clk 0:01:08.9]} 27... Nb7 {[%clk 0:00:06.5]}
28. Nf4 {[%clk 0:01:06.8]} 28... Nd6 {[%clk 0:00:06.1]} 29. Qb4 {[%clk
0:01:03.8]} 29... Nb5 {[%clk 0:00:05.8]} 30. Qe7 {[%clk 0:01:00.1]} 30... Qd6
{[%clk 0:00:03.2]} 31. Ne6+ {[%clk 0:00:56.1]} 1-0